fUST/lending_fUST_20250727
["ID","MTS","AMOUNT","RATE_DAILY","PERIOD"]
[375347042,1753629050589,-460.0,0.0002,2]
[375347044,1753629050599,-460.0,0.0002,2]
[375347047,1753629050609,-460.0,0.0002,2]
[375347049,1753629050619,-768.19,0.0002,2]
[375347051,1753629050629,-460.0,0.0002,2]
[375347053,1753629050638,-460.0,0.0002,2]
[375347055,1753629050648,-460.0,0.0002,2]
[375347057,1753629050659,-460.0,0.0002,2]
[375347059,1753629050669,-460.0,0.0002,2]
[375347061,1753629050679,-460.0,0.0002,2]
[375347063,1753629050689,-460.0,0.0002,2]
[375347065,1753629050699,-460.0,0.0002,2]
[375347067,1753629050708,-623.58,0.0002,2]
[375347069,1753629050718,-460.0,0.0002,2]
[375347071,1753629050728,-460.0,0.0002,2]
[375347073,1753629050738,-460.0,0.0002,2]
[375347074,1753629050749,-460.0,0.0002,2]
[375347076,1753629050759,-460.0,0.0002,2]
[375347078,1753629050768,-460.0,0.0002,2]
[375347081,1753629050783,-460.0,0.0002,2]
[375347083,1753629050793,-460.0,0.0002,2]
[375347085,1753629050803,-460.0,0.0002,2]
[375347087,1753629050813,-1098.03,0.0002,2]
[375347089,1753629050823,-460.0,0.0002,2]
[375347091,1753629050832,-460.0,0.0002,2]
[375347093,1753629050841,-661.63,0.0002,2]
[375347095,1753629050851,-460.0,0.0002,2]
[375347097,1753629050861,-460.0,0.0002,2]
[375347099,1753629050874,-460.0,0.0002,2]
[375347100,1753629050884,-460.0,0.0002,2]
[375347103,1753629050894,-460.0,0.0002,2]
[375347105,1753629050905,-746.78,0.0002,2]
[375347107,1753629050915,-460.0,0.0002,2]
[375347109,1753629050924,-818.69,0.0002,2]
[375347111,1753629050934,-460.0,0.0002,2]
[375347112,1753629050944,-1322.82,0.0002,2]
[375347114,1753629050954,-460.0,0.0002,2]
[375347116,1753629050964,-460.0,0.0002,2]
[375347118,1753629050975,-460.0,0.0002,2]
[375347121,1753629050986,-460.0,0.0002,2]
[375347123,1753629050996,-510.57,0.0002,2]
[375347125,1753629051007,-460.0,0.0002,2]
[375347127,1753629051017,-460.0,0.0002,2]
[375347129,1753629051028,-1000.0,0.00020021,2]
[375347131,1753629051039,-1007.37316975,0.00020021,2]
[375347133,1753629051049,-1000.0,0.00020021,2]
[375347135,1753629051060,-500.0,0.00020021,2]
[375347137,1753629051070,-723.80422117,0.00020021,2]
[375347139,1753629051086,-1000.0,0.00020021,2]
[375347141,1753629051096,-508.39868873,0.00020021,2]
[375347143,1753629051106,-1000.0,0.00020021,2]
[375347145,1753629051116,-1000.0,0.00020021,2]
[375347147,1753629051125,-1000.0,0.00020021,2]
[375347149,1753629051136,-1000.0,0.00020021,2]
[375347151,1753629051148,-1000.0,0.00020021,2]
[375347153,1753629051158,-1182.90061916,0.00020141,2]
[375347155,1753629051169,-403.221298,0.00020187,2]
[375347157,1753629051179,-1500.0,0.00020268,2]
[375347160,1753629051191,-798.08,0.00020271,2]
[375347161,1753629051200,-460.0,0.00020273,2]
[375347162,1753629051210,-460.0,0.00020273,2]
[375347163,1753629051220,-460.0,0.00020273,2]
[375347164,1753629051230,-558.50101966,0.00020273,2]
[375347165,1753629051240,-460.0,0.00020273,2]
[375347166,1753629051251,-460.0,0.00020273,2]
[375347167,1753629051260,-460.0,0.00020273,2]
[375347168,1753629051270,-549.44948426,0.00020273,2]
[375347169,1753629051280,-460.0,0.00020273,2]
[375347170,1753629051290,-460.0,0.00020273,2]
[375347171,1753629051300,-460.0,0.00020273,2]
[375347172,1753629051310,-460.0,0.00020273,2]
[375347173,1753629051320,-460.0,0.00020273,2]
[375347174,1753629051332,-460.0,0.00020273,2]
[375347175,1753629051342,-460.0,0.00020273,2]
[375347176,1753629051351,-460.0,0.00020273,2]
[375347177,1753629051361,-460.0,0.00020273,2]
[375347178,1753629051371,-460.0,0.00020273,2]
[375347179,1753629051381,-460.0,0.00020273,2]
[375347180,1753629051390,-460.0,0.00020273,2]
[375347181,1753629051401,-460.0,0.00020273,2]
[375347182,1753629051412,-460.0,0.00020273,2]
[375347183,1753629051421,-504.06,0.00020273,2]
[375347184,1753629051431,-460.0,0.00020273,2]
[375347185,1753629051441,-164.22,0.00020273,2]
[375347186,1753629051451,-460.0,0.00020273,2]
[375347187,1753629051461,-460.0,0.00020273,2]
[375347188,1753629051470,-460.0,0.00020273,2]
[375347189,1753629051482,-833.38,0.00020273,2]
[375347190,1753629051492,-394.30047243,0.00020273,2]
[375347191,1753629051501,-460.0,0.00020273,2]
[375347192,1753629051512,-460.0,0.00020273,2]
[375347193,1753629051521,-460.0,0.00020273,2]
[375347194,1753629051531,-460.0,0.00020273,2]
[375347195,1753629051541,-460.0,0.00020273,2]
[375347196,1753629051550,-460.0,0.00020273,2]
[375347197,1753629051560,-460.0,0.00020273,2]
[375347198,1753629051569,-460.0,0.00020273,2]
[375347199,1753629051580,-460.0,0.00020273,2]
[375347200,1753629051589,-460.0,0.00020273,2]
[375347201,1753629051601,-460.0,0.00020273,2]
[375347202,1753629051611,-460.0,0.00020273,2]
[375347203,1753629051620,-460.0,0.00020273,2]
[375347204,1753629051630,-460.0,0.00020273,2]
[375347205,1753629051640,-460.0,0.00020273,2]
[375347206,1753629051650,-460.0,0.00020273,2]
[375347207,1753629051660,-460.0,0.00020273,2]
[375347208,1753629051669,-460.0,0.00020273,2]
[375347209,1753629051680,-1525.19,0.00020273,2]
[375347210,1753629051690,-460.0,0.00020273,2]
[375347211,1753629051700,-460.0,0.00020273,2]
[375347212,1753629051710,-460.0,0.00020273,2]
[375347213,1753629051720,-460.0,0.00020273,2]
[375347214,1753629051729,-1545.08,0.00020273,2]
[375347215,1753629051739,-460.0,0.00020273,2]
[375347216,1753629051750,-460.0,0.00020273,2]
[375347217,1753629051760,-460.0,0.00020273,2]
[375347218,1753629051770,-1065.96,0.00020273,2]
[375347219,1753629051779,-460.0,0.00020273,2]
[375347220,1753629051788,-2300.28,0.00020273,2]
[375347221,1753629051798,-543.61,0.00020273,2]
[375347222,1753629051808,-460.0,0.00020273,2]
[375347223,1753629051817,-460.0,0.00020273,2]
[375347224,1753629051827,-460.0,0.00020273,2]
[375347225,1753629051837,-460.0,0.00020273,2]
[375347226,1753629051847,-460.0,0.00020273,2]
[375347228,1753629051856,-768.19,0.00020273,2]
[375347230,1753629051866,-460.0,0.00020273,2]
[375347232,1753629051876,-460.0,0.00020273,2]
[375347234,1753629051885,-460.0,0.00020273,2]
[375347236,1753629051894,-460.0,0.00020273,2]
[375347238,1753629051904,-623.58,0.00020273,2]
[375347240,1753629051914,-460.0,0.00020273,2]
[375347241,1753629051924,-460.0,0.00020273,2]
[375347242,1753629051935,-494.18,0.00020273,2]
[375347243,1753629051945,-460.0,0.00020273,2]
[375347244,1753629051954,-460.0,0.00020273,2]
[375347245,1753629051963,-153.32,0.00020273,2]
[375347246,1753629051973,-460.0,0.00020273,2]
[375347247,1753629051983,-460.0,0.00020273,2]
[375347248,1753629051992,-1098.03,0.00020273,2]
[375347249,1753629052002,-460.0,0.00020273,2]
[375347250,1753629052011,-460.0,0.00020273,2]
[375347251,1753629052020,-661.63,0.00020273,2]
[375347252,1753629052029,-575.8,0.00020273,2]
[375347253,1753629052039,-390.95,0.00020273,2]
[375347254,1753629052048,-460.0,0.00020273,2]
[375347255,1753629052057,-460.0,0.00020273,2]
[375347256,1753629052066,-746.78,0.00020273,2]
[375347257,1753629052078,-183.74,0.00020273,2]
[375347258,1753629052087,-818.69,0.00020273,2]
[375347259,1753629052097,-1322.82,0.00020273,2]
[375347260,1753629052106,-460.0,0.00020273,2]
[375347261,1753629052115,-575.91764872,0.00020273,2]
[375347262,1753629052125,-510.57,0.00020273,2]
[375347263,1753629052134,-460.0,0.00020273,2]
[375347264,1753629052143,-170.73140328,0.00020289,2]
[375347265,1753629052152,-1182.90061916,0.00020348,3]
[375347266,1753629052161,-600.0,0.00020412,2]
[375347267,1753629052171,-798.08,0.00020545,2]
[375347268,1753629052180,-467.06,0.00020547,2]
[375347269,1753629052189,-460.0,0.00020547,2]
[375347270,1753629052199,-460.0,0.00020547,2]
[375347271,1753629052208,-460.0,0.00020547,2]
[375347272,1753629052218,-219.72675955,0.00020547,2]
[375347273,1753629052226,-460.0,0.00020547,2]
[375347274,1753629052236,-313.86264947,0.00020547,2]
[375347275,1753629052245,-223.41,0.00020547,2]
[375347276,1753629052254,-460.0,0.00020547,2]
[375347277,1753629052263,-460.0,0.00020547,2]
[375347278,1753629052272,-460.0,0.00020547,2]
[375347279,1753629052282,-460.0,0.00020547,2]
[375347280,1753629052291,-460.0,0.00020547,2]
[375347281,1753629052301,-833.38,0.00020547,2]
[375347282,1753629052310,-460.0,0.00020547,2]
[375347283,1753629052319,-460.0,0.00020547,2]
[375347284,1753629052330,-460.0,0.00020547,2]
[375347285,1753629052339,-460.0,0.00020547,2]
[375347286,1753629052348,-489.1,0.00020547,2]
[375347287,1753629052357,-460.0,0.00020547,2]
[375347288,1753629052367,-153.0,0.00020547,2]
[375347289,1753629052377,-424.19901775,0.00020547,2]
[375347290,1753629052386,-460.0,0.00020547,2]
[375347291,1753629052395,-460.0,0.00020547,2]
[375347292,1753629052431,-460.0,0.00020547,2]
[375347293,1753629052440,-482.37,0.00020547,2]
[375347294,1753629052450,-460.0,0.00020547,2]
[375347295,1753629052460,-1525.19,0.00020547,2]
[375347296,1753629052469,-460.0,0.00020547,2]
[375347297,1753629052478,-460.0,0.00020547,2]
[375347298,1753629052488,-460.0,0.00020547,2]
[375347299,1753629052498,-1545.08,0.00020547,2]
[375347300,1753629052507,-460.0,0.00020547,2]
[375347302,1753629052516,-460.0,0.00020547,2]
[375347304,1753629052526,-465.78350436,0.00020547,2]
[375347306,1753629052535,-1065.96,0.00020547,2]
[375347308,1753629052544,-460.0,0.00020547,2]
[375347309,1753629052553,-2300.28,0.00020547,2]
[375347310,1753629052562,-543.61,0.00020547,2]
[375347311,1753629052571,-460.0,0.00020547,2]
[375347312,1753629052580,-460.0,0.00020547,2]
[375347313,1753629052589,-460.0,0.00020547,2]
[375347314,1753629052598,-525.2,0.00020547,2]
[375347315,1753629052607,-768.19,0.00020547,2]
[375347316,1753629052616,-460.0,0.00020547,2]
[375347317,1753629052625,-571.05,0.00020547,2]
[375347318,1753629052634,-460.0,0.00020547,2]
[375347319,1753629052643,-460.0,0.00020547,2]
[375347320,1753629052652,-623.58,0.00020547,2]
[375347321,1753629052661,-460.0,0.00020547,2]
[375347322,1753629052671,-460.0,0.00020547,2]
[375347323,1753629052681,-151.0,0.00020547,2]
[375347324,1753629052690,-460.0,0.00020547,2]
[375347325,1753629052699,-517.48,0.00020547,2]
[375347327,1753629052709,-427.41097889,0.00020547,2]
[375347329,1753629052718,-1098.03,0.00020547,2]
[375347331,1753629052727,-661.63,0.00020547,2]
[375347333,1753629052737,-460.0,0.00020547,2]
[375347335,1753629052747,-746.78,0.00020547,2]
[375347336,1753629052775,-818.69,0.00020547,2]
[375347337,1753629052784,-1322.82,0.00020547,2]
[375347338,1753629052793,-460.0,0.00020547,2]
[375347339,1753629052803,-510.57,0.00020547,2]
[375347340,1753629052812,-1182.90061916,0.00020555,3]
[375347341,1753629052821,-151.0,0.00020568,2]
[375347342,1753629052831,-151.0,0.00020568,2]
[375347343,1753629052841,-151.0,0.00020568,2]
[375347344,1753629052850,-151.0,0.00020568,2]
[375347345,1753629052860,-550.86559429,0.00020568,2]
[375347346,1753629052869,-1500.0,0.00020568,2]
[375347347,1753629052878,-1500.0,0.00020568,2]
[375347348,1753629052888,-1197.55022164,0.00020568,2]
[375347349,1753629052897,-500.0,0.0002058,2]
[375347350,1753629052908,-1182.90061916,0.00020762,3]
[375347351,1753629052917,-420.0,0.00020792,2]
[375347352,1753629052926,-500.0,0.00020816,2]
[375347353,1753629052936,-798.08,0.00020819,2]
[375347354,1753629052945,-151.52,0.00020821,2]
[375347355,1753629052955,-460.0,0.00020821,2]
[375347356,1753629052964,-460.0,0.00020821,2]
[375347357,1753629052974,-460.0,0.00020821,2]
[375347358,1753629052983,-460.0,0.00020821,2]
[375347359,1753629052992,-460.0,0.00020821,2]
[375347360,1753629053001,-460.0,0.00020821,2]
[375347361,1753629053011,-460.0,0.00020821,2]
[375347362,1753629053020,-460.0,0.00020821,2]
[375347363,1753629053029,-833.38,0.00020821,2]
[375347364,1753629053038,-460.0,0.00020821,2]
[375347365,1753629053048,-460.0,0.00020821,2]
[375347366,1753629053057,-460.0,0.00020821,2]
[375347367,1753629053067,-287.42,0.00020821,2]
[375347368,1753629053077,-556.41123745,0.00020821,2]
[375347369,1753629053086,-460.0,0.00020821,2]
[375347370,1753629053096,-460.0,0.00020821,2]
[375347371,1753629053105,-460.0,0.00020821,2]
[375347372,1753629053114,-460.0,0.00020821,2]
[375347373,1753629053124,-1525.19,0.00020821,2]
[375347374,1753629053133,-460.0,0.00020821,2]
[375347375,1753629053142,-460.0,0.00020821,2]
[375347376,1753629053152,-460.0,0.00020821,2]
[375347377,1753629053161,-1545.08,0.00020821,2]
[375347378,1753629053171,-460.0,0.00020821,2]
[375347379,1753629053181,-460.0,0.00020821,2]
[375347380,1753629053190,-1065.96,0.00020821,2]
[375347381,1753629053200,-460.0,0.00020821,2]
[375347382,1753629053209,-2300.28,0.00020821,2]
[375347383,1753629053219,-543.61,0.00020821,2]
[375347384,1753629053228,-460.0,0.00020821,2]
[375347385,1753629053237,-460.0,0.00020821,2]
[375347386,1753629053247,-427.58,0.00020821,2]
[375347387,1753629053256,-768.19,0.00020821,2]
[375347388,1753629053265,-185.43,0.00020821,2]
[375347389,1753629053275,-460.0,0.00020821,2]
[375347390,1753629053284,-460.0,0.00020821,2]
[375347391,1753629053294,-623.58,0.00020821,2]
[375347392,1753629053304,-460.0,0.00020821,2]
[375347393,1753629053314,-460.0,0.00020821,2]
[375347394,1753629053324,-460.0,0.00020821,2]
[375347395,1753629053333,-1098.03,0.00020821,2]
[375347396,1753629053343,-661.63,0.00020821,2]
[375347397,1753629053352,-460.0,0.00020821,2]
[375347398,1753629053362,-746.78,0.00020821,2]
[375347399,1753629053371,-818.69,0.00020821,2]
[375347400,1753629053381,-1322.82,0.00020821,2]
[375347401,1753629053391,-510.57,0.00020821,2]
[375347402,1753629053401,-151.0,0.00020913,2]
[375347403,1753629053414,-1182.90061916,0.00020969,4]
[375347404,1753629053424,-3000.0,0.00021,2]
[375347405,1753629053434,-3000.0,0.0002101,2]
[375347406,1753629053443,-3000.0,0.0002102,2]
[375347407,1753629053454,-3000.0,0.0002103,2]
[375347408,1753629053464,-3000.0,0.0002104,2]
[375347409,1753629053474,-3000.0,0.0002105,2]
[375347410,1753629053486,-3000.0,0.0002106,2]
[375347411,1753629053496,-480.5484476,0.00021068,2]
[375347412,1753629053506,-3000.0,0.0002107,2]
[375347413,1753629053516,-214.84090509,0.00021071,2]
[375347414,1753629053525,-840.75038169,0.00021071,2]
[375347415,1753629053535,-160.0,0.00021071,2]
[375347416,1753629053544,-12632.25855046,0.00021071,2]
[375347417,1753629053554,-312.16666667,0.00021071,2]
[375347418,1753629053563,-160.0,0.00021071,2]
[375347419,1753629053573,-160.0,0.00021071,2]
[375347420,1753629053583,-477.07289566,0.00021071,2]
[375347421,1753629053592,-231.30466539,0.00021071,2]
[375347422,1753629053602,-216.01841554,0.00021071,2]
[375347423,1753629053612,-500.0,0.00021073,2]
[375347424,1753629053621,-526.50274803,0.00021073,2]
[375347425,1753629053631,-160.0,0.00021073,2]
[375347426,1753629053640,-160.0,0.00021073,2]
[375347427,1753629053650,-160.0,0.00021073,2]
[375347428,1753629053659,-160.0,0.00021073,2]
[375347429,1753629053669,-3000.0,0.0002108,2]
[375347430,1753629053679,-268.594645,0.0002108,2]
[375347431,1753629053689,-151.0,0.0002108,2]
[375347432,1753629053699,-151.0,0.0002108,2]
[375347433,1753629053710,-3000.0,0.0002109,2]
[375347434,1753629053719,-798.08,0.00021093,2]
[375347435,1753629053729,-460.0,0.00021095,2]
[375347436,1753629053738,-460.0,0.00021095,2]
[375347437,1753629053748,-460.0,0.00021095,2]
[375347438,1753629053757,-460.0,0.00021095,2]
[375347439,1753629053766,-460.0,0.00021095,2]
[375347440,1753629053776,-360.4017144,0.00021095,2]
[375347441,1753629053786,-338.75,0.00021095,2]
[375347442,1753629053796,-460.0,0.00021095,2]
[375347443,1753629053805,-833.38,0.00021095,2]
[375347444,1753629053815,-460.0,0.00021095,2]
[375347445,1753629053825,-460.0,0.00021095,2]
[375347446,1753629053835,-460.0,0.00021095,2]
[375347447,1753629053844,-460.0,0.00021095,2]
[375347448,1753629053854,-460.0,0.00021095,2]
[375347449,1753629053865,-460.0,0.00021095,2]
[375347450,1753629053875,-1525.19,0.00021095,2]
[375347451,1753629053884,-460.0,0.00021095,2]
[375347452,1753629053894,-460.0,0.00021095,2]
[375347453,1753629053903,-460.0,0.00021095,2]
[375347454,1753629053913,-1545.08,0.00021095,2]
[375347455,1753629053923,-1545.08,0.00021095,2]
[375347456,1753629053932,-460.0,0.00021095,2]
[375347457,1753629053942,-460.0,0.00021095,2]
[375347458,1753629053952,-1065.96,0.00021095,2]
[375347459,1753629053962,-460.0,0.00021095,2]
[375347460,1753629053972,-2300.28,0.00021095,2]
[375347461,1753629053982,-543.61,0.00021095,2]
[375347462,1753629053992,-460.0,0.00021095,2]
[375347463,1753629054002,-460.0,0.00021095,2]
[375347464,1753629054011,-768.19,0.00021095,2]
[375347465,1753629054021,-460.0,0.00021095,2]
[375347466,1753629054031,-623.58,0.00021095,2]
[375347467,1753629054040,-388.94,0.00021095,2]
[375347468,1753629054049,-268.68,0.00021095,2]
[375347469,1753629054059,-460.0,0.00021095,2]
[375347470,1753629054068,-1098.03,0.00021095,2]
[375347471,1753629054079,-661.63,0.00021095,2]
[375347472,1753629054088,-460.0,0.00021095,2]
[375347473,1753629054098,-746.78,0.00021095,2]
[375347474,1753629054107,-818.69,0.00021095,2]
[375347475,1753629054117,-1322.82,0.00021095,2]
[375347476,1753629054127,-510.57,0.00021095,2]
[375347477,1753629054137,-3000.0,0.000211,2]
[375347478,1753629054147,-3000.0,0.0002111,2]
[375347479,1753629054156,-500.0,0.00021116,2]
[375347480,1753629054166,-3000.0,0.0002112,2]
[375347481,1753629054176,-258.35454568,0.00021128,2]
[375347482,1753629054185,-3000.0,0.0002113,2]
[375347483,1753629054195,-3000.0,0.0002114,2]
[375347484,1753629054205,-3000.0,0.0002115,2]
[375347485,1753629054215,-3000.0,0.0002116,2]
[375347486,1753629054224,-815.652,0.00021166,2]
[375347487,1753629054234,-3000.0,0.0002117,2]
[375347488,1753629054244,-1182.90061916,0.00021176,4]
[375347489,1753629054254,-3000.0,0.0002118,2]
[375347490,1753629054264,-160.0,0.00021183,2]
[375347491,1753629054274,-3000.0,0.0002119,2]
[375347492,1753629054283,-360.58493,0.0002119,2]
[375347493,1753629054293,-360.58493,0.0002119,2]
[375347494,1753629054303,-3000.0,0.000212,2]
[375347495,1753629054312,-515.0,0.00021207,4]
[375347496,1753629054322,-3000.0,0.0002121,2]
[375347497,1753629054334,-151.0,0.0002121,2]
[375347498,1753629054344,-3000.0,0.0002122,2]
[375347499,1753629054354,-170.73140328,0.00021226,2]
[375347500,1753629054365,-3000.0,0.0002123,2]
[375347501,1753629054374,-3000.0,0.0002124,2]
[375347502,1753629054384,-3000.0,0.0002125,2]
[375347503,1753629054394,-3000.0,0.0002126,2]
[375347504,1753629054404,-3000.0,0.0002127,2]
[375347505,1753629054417,-3000.0,0.0002128,2]
[375347506,1753629054427,-3000.0,0.0002129,2]
[375347507,1753629054437,-151.0,0.0002129,2]
[375347508,1753629054447,-152.193325,0.0002129,2]
[375347509,1753629054457,-151.0,0.0002129,2]
[375347510,1753629054467,-3000.0,0.000213,2]
[375347511,1753629054477,-3000.0,0.0002131,2]
[375347512,1753629054486,-3000.0,0.0002132,2]
[375347513,1753629054496,-151.0,0.0002132,2]
[375347514,1753629054506,-151.0,0.0002132,2]
[375347515,1753629054517,-151.0,0.0002132,2]
[375347516,1753629054527,-151.0,0.0002132,2]
[375347517,1753629054538,-3000.0,0.0002133,2]
[375347518,1753629054548,-3000.0,0.0002134,2]
[375347519,1753629054557,-3000.0,0.0002135,2]
[375347520,1753629054567,-3000.0,0.0002136,2]
[375347521,1753629054578,-798.08,0.00021367,2]
[375347522,1753629054588,-406.0,0.00021369,2]
[375347523,1753629054597,-460.0,0.00021369,2]
[375347524,1753629054607,-460.0,0.00021369,2]
[375347525,1753629054616,-460.0,0.00021369,2]
[375347526,1753629054626,-460.0,0.00021369,2]
[375347527,1753629054636,-460.0,0.00021369,2]
[375347528,1753629054646,-833.38,0.00021369,2]
[375347529,1753629054655,-460.0,0.00021369,2]
[375347530,1753629054665,-285.68,0.00021369,2]
[375347531,1753629054674,-460.0,0.00021369,2]
[375347532,1753629054684,-460.0,0.00021369,2]
[375347533,1753629054694,-495.4,0.00021369,2]
[375347534,1753629054704,-1525.19,0.00021369,2]
[375347535,1753629054714,-460.0,0.00021369,2]
[375347536,1753629054725,-460.0,0.00021369,2]
[375347537,1753629054735,-460.0,0.00021369,2]
[375347538,1753629054746,-1545.08,0.00021369,2]
[375347539,1753629054756,-151.0,0.00021369,2]
[375347540,1753629054766,-1545.08,0.00021369,2]
[375347541,1753629054775,-460.0,0.00021369,2]
[375347542,1753629054785,-460.0,0.00021369,2]
[375347543,1753629054795,-1065.96,0.00021369,2]
[375347544,1753629054805,-460.0,0.00021369,2]
[375347545,1753629054814,-2300.28,0.00021369,2]
[375347546,1753629054824,-543.61,0.00021369,2]
[375347547,1753629054834,-303.22,0.00021369,2]
[375347548,1753629054844,-232.32,0.00021369,2]
[375347549,1753629054854,-768.19,0.00021369,2]
[375347550,1753629054864,-460.0,0.00021369,2]
[375347551,1753629054874,-623.58,0.00021369,2]
[375347552,1753629054884,-416.48,0.00021369,2]
[375347553,1753629054894,-1098.03,0.00021369,2]
[375347554,1753629054904,-661.63,0.00021369,2]
[375347555,1753629054913,-460.0,0.00021369,2]
[375347556,1753629054923,-746.78,0.00021369,2]
[375347557,1753629054933,-818.69,0.00021369,2]
[375347558,1753629054944,-1322.82,0.00021369,2]
[375347559,1753629054954,-510.57,0.00021369,2]
[375347560,1753629054963,-3000.0,0.0002137,2]
[375347561,1753629054973,-500.0,0.00021373,2]
[375347562,1753629054982,-3000.0,0.0002138,2]
[375347563,1753629054992,-1182.90061916,0.00021383,5]
[375347564,1753629055002,-3000.0,0.0002139,2]
[375347565,1753629055012,-3450.789547,0.000214,2]
[375347566,1753629055022,-151.0,0.0002142,2]
[375347567,1753629055032,-151.0,0.0002142,2]
[375347568,1753629055042,-600.0,0.00021508,2]
[375347569,1753629055052,-1182.90061916,0.0002159,5]
[375347570,1753629055062,-515.0,0.00021633,4]
[375347571,1753629055072,-798.08,0.00021641,2]
[375347572,1753629055083,-199.27,0.00021643,2]
[375347573,1753629055196,-165.32,0.00021643,2]
[375347574,1753629055206,-460.0,0.00021643,2]
[375347575,1753629055216,-442.68,0.00021643,2]
[375347576,1753629055225,-460.0,0.00021643,2]
[375347577,1753629055235,-833.38,0.00021643,2]
[375347578,1753629055244,-460.0,0.00021643,2]
[375347579,1753629055254,-213.472028,0.00021643,2]
[375347580,1753629055264,-460.0,0.00021643,2]
[375347581,1753629055274,-460.0,0.00021643,2]
[375347582,1753629055283,-1525.19,0.00021643,2]
[375347583,1753629055293,-460.0,0.00021643,2]
[375347584,1753629055303,-460.0,0.00021643,2]
[375347585,1753629055312,-460.0,0.00021643,2]
[375347586,1753629055322,-1545.08,0.00021643,2]
[375347587,1753629055332,-1545.08,0.00021643,2]
[375347588,1753629055342,-274.94,0.00021643,2]
[375347589,1753629055352,-450.68,0.00021643,2]
[375347590,1753629055361,-1065.96,0.00021643,2]
[375347591,1753629055371,-460.0,0.00021643,2]
[375347592,1753629055380,-2300.28,0.00021643,2]
[375347593,1753629055390,-543.61,0.00021643,2]
[375347594,1753629055399,-768.19,0.00021643,2]
[375347595,1753629055411,-479.93,0.00021643,2]
[375347596,1753629055421,-151.0,0.00021643,2]
[375347597,1753629055432,-623.58,0.00021643,2]
[375347598,1753629055441,-1098.03,0.00021643,2]
[375347599,1753629055453,-661.63,0.00021643,2]
[375347600,1753629055462,-312.64,0.00021643,2]
[375347601,1753629055471,-746.78,0.00021643,2]
[375347602,1753629055481,-818.69,0.00021643,2]
[375347603,1753629055490,-1322.82,0.00021643,2]
[375347604,1753629055500,-510.57,0.00021643,2]
[375347605,1753629055510,-260.0,0.00021731,2]
[375347606,1753629055520,-1182.90061916,0.00021797,6]
[375347607,1753629055529,-500.0,0.00021822,2]
[375347608,1753629055539,-151.0,0.00021822,2]
[375347609,1753629055548,-500.0,0.00021822,2]
[375347610,1753629055558,-500.0,0.00021822,2]
[375347611,1753629055567,-151.0,0.00021822,2]
[375347612,1753629055577,-151.0,0.00021822,2]
[375347613,1753629055587,-151.0,0.00021822,2]
[375347614,1753629055597,-151.0,0.00021822,2]
[375347615,1753629055606,-151.56244739,0.00021822,2]
[375347616,1753629055615,-798.08,0.00021915,2]
[375347617,1753629055624,-460.0,0.00021917,2]